bitfinex/quotes_BTCUSD_20241022
["timestamp","ask_amount","ask_price","bid_price","bid_amount"]
[1729626628157,0.19225936,67582.0,67571.0,0.147992]
[1729626628373,0.147971,67581.0,67570.0,0.084052]
[1729626628584,0.19225936,67582.0,67571.0,0.14799]
[1729626629024,0.04429136,67581.0,67571.0,0.14799]
[1729626629469,0.04429136,67581.0,67570.0,0.084052]
[1729626629727,0.04429136,67581.0,67570.0,0.001652]
[1729626629728,0.16837898,67574.0,67570.0,0.001652]
[1729626629954,0.22196409,67576.0,67570.0,0.001652]
[1729626629955,0.16837898,67572.0,67570.0,0.001652]
[1729626630186,0.14895915,67575.0,67570.0,0.001652]
[1729626632402,0.00637801,67574.0,67570.0,0.001652]
[1729626633302,0.00893979,67574.0,67570.0,0.001652]
[1729626636743,0.000826,67575.0,67571.0,0.147991]
[1729626639428,0.000826,67575.0,67570.0,0.001652]
[1729626639649,0.000826,67575.0,67571.0,0.147991]
[1729626639889,0.000826,67575.0,67570.0,0.149645]
[1729626639890,0.01340064,67574.0,67570.0,0.149645]
[1729626640092,0.000826,67575.0,67571.0,0.147992]
[1729626641395,0.000826,67575.0,67570.0,0.001652]
[1729626641601,0.000826,67575.0,67571.0,0.147991]
[1729626643800,0.000826,67575.0,67570.0,0.001652]
[1729626644012,0.000826,67575.0,67571.0,0.147992]
[1729626644234,0.01340064,67574.0,67571.0,0.147992]
[1729626644680,0.01340064,67574.0,67570.0,0.001652]
[1729626644681,0.22196409,67573.0,67570.0,0.001652]
[1729626644901,0.01340064,67574.0,67570.0,0.001652]
[1729626645593,0.147992,67571.0,67570.0,0.001652]
[1729626645870,5.34695115,67571.0,67570.0,0.001652]
[1729626646719,5.19895915,67571.0,67570.0,0.001652]
[1729626646949,5.05,67571.0,67570.0,0.001652]
[1729626647403,1.153,67571.0,67570.0,0.001652]
[1729626647621,1.03286993,67571.0,67570.0,0.001652]
[1729626650158,0.01186993,67571.0,67570.0,0.001652]
[1729626650372,5.06186993,67571.0,67570.0,0.001652]
[1729626654335,5.1778804,67571.0,67570.0,0.001652]
[1729626657527,5.06186993,67571.0,67570.0,0.001652]
[1729626657966,5.1778804,67571.0,67570.0,0.001652]
[1729626659055,5.06186993,67571.0,67570.0,0.001652]
[1729626659262,5.06269593,67571.0,67570.0,0.001652]
[1729626660437,5.1787064,67571.0,67570.0,0.001652]
[1729626666972,5.06269593,67571.0,67570.0,0.001652]
[1729626675601,0.01269593,67571.0,67570.0,0.35595647]
[1729626675830,0.01269593,67571.0,67570.0,0.36095647]
[1729626676052,0.000826,67571.0,67570.0,0.36095647]
[1729626676269,0.000826,67571.0,67570.0,0.36295647]
[1729626677446,0.000826,67571.0,67570.0,0.46775172]
[1729626677671,0.000826,67571.0,67570.0,0.55075172]
[1729626678835,0.000826,67571.0,67570.0,0.56075172]
[1729626679738,0.000826,67571.0,67570.0,0.82572134]
[1729626679964,0.000826,67571.0,67570.0,0.92572134]
[1729626680416,0.000826,67571.0,67570.0,0.86191361]
[1729626690526,0.000826,67571.0,67570.0,0.58390515]
[1729626690742,0.000826,67571.0,67570.0,0.58890515]
[1729626690957,0.000826,67571.0,67570.0,0.75711836]
[1729626691414,0.000826,67571.0,67570.0,0.166646]
[1729626691639,0.000826,67571.0,67570.0,0.164646]
[1729626692131,0.000826,67571.0,67570.0,0.166646]
[1729626693959,0.000826,67571.0,67570.0,0.149646]
[1729626694172,0.34234459,67571.0,67570.0,0.001652]
[1729626694617,0.35479183,67571.0,67570.0,0.001652]
[1729626695086,5.23847324,67571.0,67570.0,0.001652]
[1729626697562,3.79247324,67571.0,67570.0,0.149646]
[1729626697743,3.77347324,67571.0,67570.0,0.149646]
[1729626697954,3.77347324,67571.0,67570.0,0.001652]
[1729626698171,3.77347324,67571.0,67570.0,0.149646]
[1729626698639,0.18847324,67571.0,67570.0,0.149646]
[1729626699070,3.44747324,67571.0,67570.0,0.149646]
[1729626699703,2.42147324,67571.0,67570.0,0.149646]
[1729626700128,2.42147324,67571.0,67570.0,0.001652]
[1729626700550,2.42147324,67571.0,67570.0,0.149646]
[1729626701615,2.42147324,67571.0,67566.0,0.296006]
[1729626701616,2.42147324,67571.0,67567.0,0.148001]
[1729626701845,5.05,67570.0,67567.0,0.148001]
[1729626702065,5.05,67570.0,67568.0,0.147998]
[1729626702318,0.01292628,67569.0,67568.0,0.147998]
[1729626702974,0.176026,67571.0,67568.0,0.147998]
[1729626703269,0.0129319,67569.0,67568.0,0.295997]
[1729626703485,0.176026,67571.0,67569.0,0.147996]
[1729626703877,2.32,67570.0,67569.0,0.147996]
[1729626704515,2.222,67570.0,67569.0,0.147996]
[1729626705808,5.06341567,67570.0,67569.0,0.147996]
[1729626706022,0.01341567,67570.0,67569.0,0.147996]
[1729626715115,0.23537976,67570.0,67560.0,0.005]
[1729626715317,0.37248691,67570.0,67565.0,0.148004]
[1729626715499,0.37248691,67570.0,67564.0,0.296015]
[1729626715713,0.22449191,67570.0,67564.0,0.296015]
[1729626715954,0.22449191,67570.0,67565.0,0.296011]
[1729626716197,0.22449191,67570.0,67566.0,0.148003]
[1729626716411,0.11601377,67569.0,67567.0,0.148001]
[1729626716626,0.01191524,67568.0,67567.0,0.148001]
[1729626717068,0.01191524,67568.0,67566.0,0.148002]
[1729626717282,0.01191524,67568.0,67566.0,0.148003]
[1729626717528,0.01191524,67568.0,67563.0,0.001652]
[1729626717529,0.26497292,67567.0,67563.0,0.001652]
[1729626717750,0.34042077,67564.0,67563.0,0.001652]
[1729626717964,5.63437992,67564.0,67563.0,0.001652]
[1729626718179,5.67426926,67564.0,67563.0,0.001652]
[1729626718418,5.71807222,67564.0,67563.0,0.001652]
[1729626718909,5.76230107,67564.0,67563.0,0.001652]
[1729626719348,5.76230688,67564.0,67563.0,0.001652]
[1729626719551,5.38224849,67564.0,67563.0,0.001652]
[1729626719765,0.08828934,67564.0,67563.0,0.149662]
[1729626719965,0.08828934,67564.0,67563.0,0.001652]
[1729626720381,0.01188934,67564.0,67563.0,0.37162609]
[1729626720615,0.01188934,67564.0,67563.0,0.149662]
[1729626720830,0.0762,67568.0,67567.0,0.148001]
[1729626721043,0.08833748,67568.0,67567.0,0.148001]
[1729626721242,5.13833748,67568.0,67567.0,0.148001]
[1729626721683,5.13833748,67568.0,67565.0,0.29601]
[1729626721684,0.01213748,67568.0,67566.0,0.296005]
[1729626721889,0.000826,67570.0,67568.0,0.295996]
[1729626722094,0.000826,67570.0,67569.0,0.147996]
[1729626722611,0.000826,67570.0,67567.0,0.148001]
[1729626722790,0.000826,67570.0,67568.0,0.147997]
[1729626723182,0.0122015,67569.0,67568.0,0.147999]
[1729626723623,0.000826,67570.0,67569.0,0.147996]
[1729626723845,0.000826,67570.0,67568.0,0.147998]
[1729626724047,0.000826,67570.0,67566.0,0.296006]
[1729626724048,0.01303312,67570.0,67569.0,0.147996]
[1729626724457,0.01303312,67570.0,67568.0,0.147997]
[1729626724643,0.01303312,67570.0,67566.0,0.296006]
[1729626724866,0.01303312,67570.0,67569.0,0.147996]
[1729626725119,0.000826,67570.0,67569.0,0.147996]
[1729626725345,0.000826,67570.0,67568.0,0.147998]
[1729626725346,0.01305502,67570.0,67568.0,0.147998]
[1729626725815,0.01305502,67570.0,67566.0,0.296006]
[1729626726036,0.01305502,67570.0,67569.0,0.147996]
[1729626726688,0.000826,67570.0,67569.0,0.147996]
[1729626726875,0.01305557,67570.0,67569.0,0.147996]
[1729626727088,0.000826,67570.0,67569.0,0.147996]
[1729626727307,0.01305557,67570.0,67569.0,0.147996]
[1729626727521,0.01305557,67570.0,67565.0,0.296011]
[1729626727741,0.01305557,67570.0,67567.0,0.148001]
[1729626728798,0.14895915,67569.0,67563.0,0.001652]
[1729626729030,0.16837172,67564.0,67563.0,0.001652]
[1729626729453,0.18060689,67564.0,67563.0,0.001652]
[1729626729675,5.52757304,67564.0,67563.0,0.001652]
[1729626729918,5.52757304,67564.0,67548.0,0.51804709]
[1729626729919,0.16837172,67557.0,67548.0,0.22196409]
[1729626730162,5.34698415,67556.0,67555.0,0.22196409]
[1729626730342,5.34698415,67556.0,67548.0,0.51804509]
[1729626730343,5.21120502,67556.0,67551.0,0.148035]
[1729626730555,5.05,67555.0,67551.0,0.148035]
[1729626730800,5.05,67555.0,67553.0,0.14803]
[1729626731028,0.11425691,67555.0,67554.0,0.149681]
[1729626731268,0.01225691,67555.0,67554.0,0.149681]
[1729626731890,0.01225691,67555.0,67554.0,0.001652]
[1729626732524,2.26525691,67555.0,67554.0,0.001652]
[1729626733639,0.01225691,67555.0,67554.0,0.001652]
[1729626734665,0.01225691,67555.0,67554.0,0.149681]
[1729626734868,0.153016,67561.0,67554.0,0.149681]
[1729626735075,0.01225691,67555.0,67554.0,0.149681]
[1729626735509,0.14895915,67560.0,67554.0,0.149681]
[1729626735726,0.21325129,67559.0,67554.0,0.149679]
[1729626735894,0.788,67558.0,67554.0,0.001652]
[1729626736099,0.01218354,67557.0,67554.0,0.001652]
[1729626736368,0.34018354,67557.0,67554.0,0.001652]
[1729626736591,0.385,67556.0,67554.0,0.001652]
[1729626737054,0.14895915,67559.0,67554.0,0.001652]
[1729626737283,0.01218354,67555.0,67554.0,0.001652]
[1729626737513,0.29697815,67559.0,67554.0,0.001652]
[1729626737812,0.01218916,67555.0,67554.0,0.001652]
[1729626738034,0.01218354,67558.0,67554.0,0.001652]
[1729626738259,0.01218916,67555.0,67554.0,0.001652]
[1729626738479,0.148024,67557.0,67554.0,0.001652]
[1729626738699,0.01218916,67555.0,67554.0,0.001652]
[1729626738927,5.05,67555.0,67554.0,0.001652]
[1729626739154,0.01220041,67555.0,67554.0,0.001652]
[1729626739391,5.60635828,67555.0,67554.0,0.001652]
[1729626743580,5.28995956,67555.0,67554.0,0.001652]
[1729626743798,5.43798656,67555.0,67554.0,0.001652]
[1729626745199,5.28995956,67555.0,67554.0,0.001652]
[1729626745417,0.14804,67549.0,67548.0,0.02317909]
[1729626745684,5.34699915,67549.0,67548.0,0.00434607]
[1729626745907,0.148042,67548.0,67547.0,0.001674]
[1729626746128,5.35914836,67548.0,67547.0,0.001674]
[1729626751725,5.36600139,67548.0,67547.0,0.001674]
[1729626760574,2.40595939,67548.0,67547.0,0.001674]
[1729626764348,2.57433111,67548.0,67547.0,0.001674]
[1729626766407,2.5682229,67548.0,67547.0,0.001674]
[1729626766840,2.5690489,67548.0,67547.0,0.001674]
[1729626767060,2.52287945,67548.0,67547.0,0.001674]
[1729626767291,2.56905327,67548.0,67547.0,0.001674]
[1729626768380,0.33105327,67548.0,67547.0,0.001674]
[1729626768678,5.38105327,67548.0,67547.0,0.001674]
[1729626772113,5.52909527,67548.0,67547.0,0.001674]
[1729626772357,5.72138012,67548.0,67537.0,0.005]
[1729626772573,0.11609406,67542.0,67538.0,0.148064]
[1729626772967,0.01144347,67541.0,67538.0,0.148064]
[1729626773174,0.01144347,67541.0,67537.0,0.005]
[1729626773797,0.01144347,67541.0,67538.0,0.296129]
[1729626774012,0.02862121,67541.0,67538.0,0.296129]
[1729626774268,0.02862121,67541.0,67539.0,0.148061]
[1729626774269,0.01144347,67541.0,67539.0,0.148061]
[1729626775084,0.01144347,67541.0,67540.0,0.14806]
[1729626775357,0.01144347,67541.0,67539.0,0.148061]
[1729626775567,0.01144347,67541.0,67540.0,0.14806]
[1729626775772,0.01144347,67541.0,67537.0,0.005]
[1729626775978,0.01144347,67541.0,67539.0,0.148061]
[1729626777460,0.01144347,67541.0,67540.0,0.14806]
[1729626777869,0.01144347,67541.0,67538.0,0.148063]
[1729626778080,0.05006199,67541.0,67539.0,0.148062]
[1729626778510,0.05006199,67541.0,67537.0,0.005]
[1729626778717,0.01144347,67541.0,67539.0,0.148062]
[1729626778935,0.01144347,67541.0,67540.0,0.14806]
[1729626779125,0.05768695,67541.0,67540.0,0.14806]
[1729626779997,0.05768695,67541.0,67539.0,0.001652]
[1729626780220,0.02843806,67540.0,67539.0,0.149714]
[1729626780487,0.05772382,67541.0,67539.0,0.149714]
[1729626780697,0.05762355,67540.0,67539.0,0.149714]
[1729626781152,0.05762355,67540.0,67539.0,0.001652]
[1729626781386,0.05762355,67540.0,67539.0,0.149714]
[1729626781604,0.05762355,67540.0,67539.0,0.001652]
[1729626781834,0.05762355,67540.0,67539.0,0.149714]
[1729626782479,0.10197884,67540.0,67539.0,0.149714]
[1729626782697,0.16150689,67540.0,67539.0,0.149714]
[1729626783561,0.10197884,67540.0,67539.0,0.001652]
[1729626783804,0.10197884,67540.0,67539.0,0.149714]
[1729626784331,0.10197884,67540.0,67539.0,0.001652]
[1729626784813,0.10197884,67540.0,67539.0,0.149714]
[1729626785304,0.05762355,67540.0,67539.0,0.149714]
[1729626787465,0.12418804,67540.0,67539.0,0.001652]
[1729626788438,0.2133865,67540.0,67539.0,0.001652]
[1729626789455,0.41640696,67540.0,67539.0,0.001652]
[1729626789686,0.3276543,67540.0,67539.0,0.001652]
[1729626790386,0.43859512,67540.0,67539.0,0.001652]
[1729626790605,0.51442364,67540.0,67539.0,0.001652]
[1729626791297,0.40348282,67540.0,67539.0,0.001652]
[1729626792048,0.40332167,67540.0,67539.0,0.001652]
[1729626792798,0.32749315,67540.0,67539.0,0.001652]
[1729626793517,0.0729721,67540.0,67539.0,0.001652]
[1729626793788,0.01034247,67540.0,67539.0,0.149714]
[1729626794037,0.07698462,67540.0,67539.0,0.001652]
[1729626794271,0.06664264,67541.0,67539.0,0.001652]
[1729626794500,0.01033122,67540.0,67539.0,0.001652]
[1729626795386,0.01033122,67540.0,67539.0,0.149714]
[1729626796900,0.14978515,67543.0,67539.0,0.149714]
[1729626797147,0.01032795,67540.0,67539.0,0.149714]
[1729626797360,0.14978515,67543.0,67539.0,0.001652]
[1729626797577,0.01032233,67542.0,67540.0,0.148059]
[1729626799635,0.01032233,67542.0,67541.0,0.148058]
[1729626802170,0.01114833,67542.0,67541.0,0.148058]
[1729626804316,0.16848658,67542.0,67541.0,0.148058]
[1729626806191,0.05742751,67542.0,67541.0,0.148058]
[1729626806643,0.16848111,67542.0,67541.0,0.148058]
[1729626807140,0.05742751,67542.0,67541.0,0.148058]
[1729626809535,0.16848696,67542.0,67541.0,0.148058]
[1729626810376,0.05742751,67542.0,67541.0,0.148058]
[1729626811666,0.14627719,67542.0,67541.0,0.148058]
[1729626811883,0.16848734,67542.0,67541.0,0.148058]
[1729626812095,0.1462765,67542.0,67541.0,0.148058]
[1729626812303,0.05742751,67542.0,67541.0,0.148058]
[1729626812512,0.14627738,67542.0,67541.0,0.148058]
[1729626812932,0.05742751,67542.0,67541.0,0.148058]
[1729626813364,0.14627951,67542.0,67541.0,0.148058]
[1729626813815,0.01114833,67542.0,67541.0,0.148058]
[1729626814948,0.11692006,67548.0,67547.0,0.239845]
[1729626814949,0.000826,67548.0,67547.0,0.239845]
[1729626815176,0.000826,67548.0,67547.0,0.56823312]
[1729626815390,0.000826,67548.0,67547.0,0.61414226]
[1729626816262,0.000826,67548.0,67547.0,0.65837893]
[1729626816473,0.000826,67548.0,67547.0,0.61214226]
[1729626816682,0.000826,67548.0,67547.0,0.76110141]
[1729626818370,0.000826,67548.0,67547.0,0.75205736]
[1729626819050,0.000826,67548.0,67547.0,0.75005736]
[1729626819262,0.000826,67548.0,67547.0,0.75205736]
[1729626820362,0.000826,67548.0,67547.0,0.338045]
[1729626821070,0.000826,67548.0,67547.0,0.45413906]
[1729626822175,0.000826,67548.0,67547.0,0.60309821]
[1729626825718,0.000826,67548.0,67547.0,0.45413906]
[1729626827275,0.000826,67548.0,67547.0,0.338045]
[1729626827534,0.000826,67548.0,67547.0,0.261245]
[1729626832630,0.000826,67548.0,67547.0,0.38029957]
[1729626832832,0.000826,67548.0,67547.0,0.51187892]
[1729626835405,0.000826,67548.0,67541.0,0.001652]
[1729626835617,0.11609406,67542.0,67541.0,0.001652]
[1729626836286,0.11609406,67542.0,67541.0,0.006652]
[1729626836523,0.11692006,67548.0,67544.0,0.005]
[1729626836743,0.11692006,67548.0,67545.0,0.296098]
[1729626836744,0.000826,67548.0,67545.0,0.296098]
[1729626836975,0.22196409,67547.0,67545.0,0.148048]
[1729626837184,0.000826,67548.0,67544.0,0.005]
[1729626837408,0.000826,67548.0,67545.0,0.148048]
[1729626837609,0.000826,67548.0,67546.0,0.148047]
[1729626838064,0.032226,67549.0,67546.0,0.148047]
[1729626839227,0.032226,67549.0,67545.0,0.148049]
[1729626843850,0.032226,67549.0,67544.0,0.153051]
[1729626844149,0.11609406,67545.0,67543.0,0.001652]
[1729626844388,0.14895915,67544.0,67543.0,0.001652]
[1729626844619,0.30403389,67544.0,67543.0,0.001652]
[1729626845127,0.15598289,67544.0,67543.0,0.001652]
[1729626848607,0.00702374,67544.0,67543.0,0.001652]
[1729626849533,5.52393389,67544.0,67543.0,0.001652]
[1729626849781,5.64002795,67544.0,67543.0,0.001652]
[1729626849991,5.58586462,67544.0,67543.0,0.001652]
[1729626850396,5.52393389,67544.0,67543.0,0.001652]
[1729626855612,5.53068142,67544.0,67543.0,0.001652]
[1729626859084,2.78268142,67544.0,67543.0,0.001652]
[1729626859528,0.82258142,67544.0,67543.0,0.001652]
[1729626859750,0.85167548,67544.0,67543.0,0.001652]
[1729626860417,0.84492795,67544.0,67543.0,0.001652]
[1729626862581,0.84575395,67544.0,67543.0,0.001652]
[1729626866177,0.35684974,67544.0,67543.0,0.001652]
[1729626866436,0.35684974,67544.0,67543.0,0.149705]
[1729626866437,0.00784974,67544.0,67543.0,0.149705]
[1729626866966,0.000826,67544.0,67543.0,0.149705]
[1729626867480,0.000826,67544.0,67543.0,0.151705]
[1729626868489,0.000826,67544.0,67543.0,0.149705]
[1729626869745,0.000826,67544.0,67543.0,0.16766584]
[1729626870258,0.000826,67544.0,67543.0,0.26226584]
[1729626870527,0.000826,67544.0,67543.0,0.46318038]
[1729626870787,0.000826,67544.0,67543.0,0.46021954]
[1729626871027,0.000826,67544.0,67543.0,0.54311954]
[1729626874624,0.000826,67544.0,67543.0,0.342205]
[1729626876119,0.000826,67544.0,67543.0,0.340205]
[1729626876349,0.000826,67544.0,67543.0,0.001652]
[1729626876350,0.11692006,67544.0,67543.0,0.001652]
[1729626876862,0.12447963,67544.0,67543.0,0.001652]
[1729626877115,0.27253063,67544.0,67543.0,0.001652]
[1729626877367,5.07747963,67544.0,67543.0,0.001652]
[1729626877613,0.54847963,67544.0,67543.0,0.001652]
[1729626878072,0.54092006,67544.0,67543.0,0.001652]
[1729626878537,0.59332372,67544.0,67543.0,0.001652]
[1729626879213,0.74137472,67544.0,67543.0,0.001652]
[1729626879715,0.59332372,67544.0,67543.0,0.001652]
[1729626882363,0.33532372,67544.0,67543.0,0.001652]
[1729626882809,0.000826,67544.0,67543.0,0.149705]
[1729626883512,0.16932372,67544.0,67543.0,0.001652]
[1729626884167,5.21932372,67544.0,67543.0,0.001652]
[1729626890513,5.26364109,67544.0,67543.0,0.001652]
[1729626893188,5.27017315,67544.0,67543.0,0.001652]
[1729626893601,0.16167543,67544.0,67543.0,0.001652]
[1729626893851,0.1616828,67544.0,67543.0,0.001652]
[1729626894061,0.15515074,67544.0,67543.0,0.001652]
[1729626894502,0.110826,67544.0,67543.0,0.001652]
[1729626895663,0.000826,67544.0,67543.0,0.001652]
[1729626895880,0.344826,67544.0,67543.0,0.001652]
[1729626896111,0.344826,67544.0,67543.0,0.149705]
[1729626896112,0.156826,67544.0,67543.0,0.149705]
[1729626896337,0.000826,67544.0,67543.0,0.39822742]
[1729626896785,0.000826,67544.0,67543.0,0.47872742]
[1729626897468,0.000826,67544.0,67543.0,0.235205]
[1729626900404,0.000826,67544.0,67543.0,0.50526415]
[1729626900630,0.000826,67549.0,67548.0,0.01]
[1729626900845,0.000826,67549.0,67548.0,0.165042]
[1729626901353,0.000826,67549.0,67548.0,0.25627741]
[1729626901577,0.000826,67549.0,67543.0,0.183252]
[1729626901578,0.11687287,67549.0,67543.0,0.001652]
[1729626901797,0.11604687,67547.0,67545.0,0.005]
[1729626902229,0.000826,67549.0,67545.0,0.005]
[1729626902445,0.976,67548.0,67545.0,0.005]
[1729626902924,0.101,67548.0,67545.0,0.153048]
[1729626903137,0.000826,67549.0,67545.0,0.005]
[1729626903354,2.408,67548.0,67545.0,0.005]
[1729626903590,2.352,67548.0,67545.0,0.005]
[1729626903824,0.000826,67549.0,67545.0,0.005]
[1729626904278,0.000826,67549.0,67543.0,0.001652]
[1729626904279,0.16846626,67547.0,67543.0,0.001652]
[1729626904723,0.16846626,67547.0,67544.0,0.005]
[1729626905832,0.16846626,67547.0,67543.0,0.149705]
[1729626905833,0.16846626,67547.0,67545.0,0.30037056]
[1729626906050,0.04515074,67549.0,67547.0,0.148044]
[1729626906298,0.04515074,67549.0,67545.0,0.00427256]
[1729626906299,0.000826,67549.0,67546.0,0.148046]
[1729626907171,0.000826,67549.0,67545.0,0.15232056]
[1729626907415,0.000826,67548.0,67545.0,0.15232056]
[1729626907845,0.000826,67548.0,67546.0,0.148046]
[1729626908701,0.000826,67548.0,67545.0,0.15232056]
[1729626908925,0.000826,67548.0,67544.0,0.00427256]
[1729626909137,0.000826,67548.0,67544.0,0.15232356]
[1729626909352,0.000826,67548.0,67544.0,0.00427256]
[1729626909779,0.000826,67548.0,67544.0,0.15232256]
[1729626910308,0.04514127,67548.0,67544.0,0.15232256]
[1729626910496,0.16846626,67545.0,67543.0,0.001652]
[1729626911167,0.16846626,67545.0,67544.0,0.148051]
[1729626911379,5.21846626,67545.0,67544.0,0.148051]
[1729626911614,3.254,67545.0,67544.0,0.148051]
[1729626911853,1.658,67545.0,67543.0,0.001652]
[1729626912081,0.04433661,67546.0,67543.0,0.001652]
[1729626912339,0.04433661,67545.0,67543.0,0.001652]
[1729626912563,0.24450491,67547.0,67543.0,0.001652]
[1729626912564,5.09433661,67546.0,67543.0,0.001652]
[1729626912774,5.05,67545.0,67543.0,0.001652]
[1729626913618,4.017,67545.0,67544.0,0.148051]
[1729626913845,0.04433661,67546.0,67544.0,0.148051]
[1729626914059,3.97,67545.0,67544.0,0.148051]
[1729626914479,4.01433661,67545.0,67543.0,0.149705]
[1729626914692,0.04433661,67545.0,67543.0,0.149705]
[1729626917456,0.04433661,67545.0,67543.0,0.001652]
[1729626918209,0.21280287,67545.0,67543.0,0.001652]
[1729626918426,0.16846626,67545.0,67544.0,0.001652]
[1729626918651,5.21846626,67545.0,67544.0,0.001652]
[1729626920517,5.28497117,67545.0,67544.0,0.001652]
[1729626921404,5.28497117,67545.0,67544.0,0.149703]
[1729626921645,0.23497117,67545.0,67544.0,0.149703]
[1729626921880,5.28497117,67545.0,67544.0,0.149703]
[1729626922112,5.28497117,67545.0,67544.0,0.001652]
[1729626922350,5.21846626,67545.0,67544.0,0.001652]
[1729626923972,5.28501466,67545.0,67544.0,0.001652]
[1729626924936,5.28501529,67545.0,67544.0,0.001652]
[1729626925398,5.21846626,67545.0,67544.0,0.001652]
[1729626926094,5.37655333,67545.0,67544.0,0.001652]
[1729626926342,5.46528537,67545.0,67544.0,0.001652]
[1729626926892,5.2850172,67545.0,67544.0,0.001652]
[1729626927113,5.2850172,67545.0,67540.0,0.296117]
[1729626927114,0.14808,67531.0,67529.0,0.22196409]
[1729626927375,5.46698727,67530.0,67529.0,0.22196409]
[1729626927612,5.3847599,67530.0,67529.0,0.22196409]
[1729626927855,5.3847599,67530.0,67519.0,0.15237756]
[1729626928075,0.21282893,67521.0,67519.0,0.00427256]
[1729626928558,0.16846626,67521.0,67519.0,0.00427256]
[1729626928781,0.00831828,67520.0,67519.0,0.00427256]
[1729626929515,0.00831828,67520.0,67519.0,0.16534029]
[1729626929741,0.04436267,67527.0,67524.0,0.148094]
[1729626929971,0.04436267,67526.0,67524.0,0.00427256]
[1729626930197,0.05268095,67526.0,67524.0,0.00427256]
[1729626930699,0.00831828,67526.0,67524.0,0.00427256]
[1729626930935,0.05268095,67526.0,67524.0,0.00427256]
[1729626931160,0.00831828,67526.0,67524.0,0.00427256]
[1729626933416,0.00831828,67526.0,67525.0,0.00427256]
[1729626935335,0.00831828,67526.0,67525.0,0.15236556]
[1729626935608,0.04436267,67539.0,67537.0,0.005]
[1729626935849,0.26632676,67544.0,67542.0,0.002]
[1729626936084,0.26632676,67544.0,67539.0,0.30039656]
[1729626936085,0.22196409,67544.0,67540.0,0.15006]
[1729626936321,0.001652,67545.0,67540.0,0.15006]
[1729626936322,0.001652,67545.0,67540.0,0.148059]
[1729626936571,0.001652,67545.0,67538.0,0.378629]
[1729626936572,0.001652,67545.0,67543.0,0.148052]
[1729626936829,0.001652,67545.0,67542.0,0.00627256]
[1729626937102,0.001652,67545.0,67544.0,0.22196409]
[1729626937366,0.001652,67545.0,67544.0,0.25452356]
[1729626937625,0.001652,67545.0,67544.0,0.25748405]
[1729626937889,0.001652,67545.0,67544.0,0.4064432]
[1729626938156,0.001652,67545.0,67544.0,0.65244897]
[1729626938861,0.001652,67545.0,67544.0,0.77841647]
[1729626939345,0.001652,67545.0,67544.0,0.60995021]
[1729626939580,0.001652,67545.0,67544.0,0.77841647]
[1729626939774,0.001652,67545.0,67544.0,0.78341647]
[1729626945235,0.001652,67545.0,67544.0,0.77341647]
[1729626949808,0.001652,67545.0,67544.0,0.64744897]
[1729626961305,0.001652,67545.0,67544.0,0.47898271]
[1729626963995,0.001652,67545.0,67544.0,0.15432356]
[1729626964230,0.001652,67545.0,67544.0,0.14232356]
[1729626964480,0.001652,67545.0,67544.0,0.15232356]
[1729626965406,0.001652,67545.0,67544.0,0.15514956]
[1729626967797,0.001652,67545.0,67544.0,0.15314956]
[1729626970847,0.001652,67545.0,67544.0,0.14314956]
[1729626971064,0.001652,67545.0,67544.0,0.000826]
[1729626971065,0.174952,67545.0,67544.0,0.000826]
[1729626971297,0.323001,67545.0,67544.0,0.000826]
[1729626971731,0.47196015,67545.0,67544.0,0.000826]
[1729626971736,5.69042641,67545.0,67544.0,0.000826]
[1729626971955,5.73662879,67545.0,67544.0,0.000826]
[1729626972173,5.78078836,67545.0,67544.0,0.000826]
[1729626972634,5.73662879,67545.0,67544.0,0.000826]
[1729626972864,5.80286815,67545.0,67544.0,0.000826]
[1729626973798,5.63440189,67545.0,67544.0,0.000826]
[1729626974021,5.56816253,67545.0,67544.0,0.000826]
[1729626974264,5.6344066,67545.0,67544.0,0.000826]
[1729626974497,5.81953157,67545.0,67544.0,0.000826]
[1729626975406,5.98799783,67545.0,67544.0,0.000826]
[1729626976044,5.99474254,67545.0,67544.0,0.000826]
[1729626976482,5.9064234,67545.0,67544.0,0.000826]
[1729626977374,5.86022102,67545.0,67544.0,0.000826]
[1729626977601,5.97061995,67545.0,67544.0,0.000826]
[1729626977829,5.80215369,67545.0,67544.0,0.000826]
[1729626978147,5.69175476,67545.0,67544.0,0.000826]
[1729626978354,5.80215369,67545.0,67544.0,0.000826]
[1729626978974,5.97061995,67545.0,67544.0,0.000826]
[1729626979230,5.80215369,67545.0,67544.0,0.000826]
[1729626979456,5.97061995,67545.0,67544.0,0.000826]
[1729626979666,6.07634739,67545.0,67544.0,0.000826]
[1729626979889,6.07643394,67545.0,67544.0,0.000826]
[1729626980315,5.90796768,67545.0,67544.0,0.000826]
[1729626981644,3.87998086,67545.0,67544.0,0.000826]
[1729626983481,3.7694822,67545.0,67544.0,0.000826]
[1729626983929,3.7644822,67545.0,67544.0,0.000826]
[1729626985256,3.32594846,67545.0,67544.0,0.000826]
[1729626985472,3.41357654,67545.0,67544.0,0.000826]
[1729626985904,3.16457654,67545.0,67544.0,0.000826]
[1729626986761,3.16457103,67545.0,67544.0,0.000826]
[1729626986953,3.25041472,67545.0,67544.0,0.000826]
[1729626987162,3.25041472,67545.0,67538.0,0.02318472]
[1729626987163,0.49772826,67539.0,67538.0,0.02318472]
[1729626987385,0.0821,67528.0,67527.0,0.22196409]
[1729626987597,5.30056626,67528.0,67527.0,0.22196409]
[1729626988021,5.30056626,67528.0,67525.0,0.00427256]
[1729626988232,0.16846626,67528.0,67522.0,0.00427256]
[1729626988443,0.16846626,67528.0,67526.0,0.00427256]
[1729626988649,0.16846626,67528.0,67525.0,0.148091]
[1729626989470,0.16846626,67528.0,67526.0,0.14809]
[1729626989889,0.0821,67533.0,67527.0,0.00427256]
[1729626990103,0.5393895,67538.0,67527.0,0.00427256]
[1729626990312,1.415,67537.0,67528.0,0.00427256]
[1729626990529,0.14895915,67536.0,67529.0,0.296169]
[1729626990728,4.545,67535.0,67531.0,0.148078]
[1729626990947,4.545,67535.0,67530.0,0.298164]
[1729626991189,4.545,67535.0,67530.0,0.14808]
[1729626991190,3.063,67535.0,67530.0,0.14808]